fUST/lending_fUST_20260528
["ID","MTS","AMOUNT","RATE_DAILY","PERIOD"]
[423218494,1779941442000,-1281.93,9.589e-05,2]
[423218499,1779941442000,-500.0,9.589e-05,2]
[423218503,1779941442000,-1338.06,9.589e-05,2]
[423218496,1779941442000,-500.0,9.589e-05,2]
[423218504,1779941442000,-1106.51,9.589e-05,2]
[423218501,1779941442000,-500.0,9.589e-05,2]
[423218508,1779941442000,-500.0,9.589e-05,2]
[423218535,1779941442000,-500.0,9.589e-05,2]
[423218516,1779941442000,-500.0,9.589e-05,2]
[423218519,1779941442000,-500.0,9.589e-05,2]
[423218521,1779941442000,-5117.69,9.589e-05,2]
[423218514,1779941442000,-604.69047093,9.589e-05,2]
[423218523,1779941442000,-1379.29,9.589e-05,2]
[423218510,1779941442000,-500.0,9.589e-05,2]
[423218525,1779941442000,-500.0,9.589e-05,2]
[423218512,1779941442000,-981.5,9.589e-05,2]
[423218527,1779941442000,-538.89,9.589e-05,2]
[423218529,1779941442000,-500.0,9.589e-05,2]
[423218536,1779941442000,-500.0,9.589e-05,2]
[423218542,1779941442000,-1148.2681,9.863e-05,2]
[423218506,1779941442000,-500.0,9.589e-05,2]
[423218583,1779941442000,-509.11,9.863e-05,2]
[423218574,1779941442000,-500.0,9.863e-05,2]
[423218587,1779941442000,-981.5,9.863e-05,2]
[423218659,1779941442000,-981.5,0.00010136,2]
[423218661,1779941442000,-500.0,0.00010136,2]
[423218669,1779941442000,-1379.29,0.00010136,2]
[423218656,1779941442000,-500.0,0.00010136,2]
[423218665,1779941442000,-583.33,0.00010136,2]
[423218675,1779941442000,-377.17,0.00010136,2]
[423218671,1779941442000,-500.0,0.00010136,2]
[423218681,1779941442000,-500.0,0.00010136,2]
[423218673,1779941442000,-538.89,0.00010136,2]
[423218679,1779941442000,-500.0,0.00010136,2]
[423218667,1779941442000,-5117.69,0.00010136,2]
[423218657,1779941442000,-500.0,0.00010136,2]
[423218677,1779941442000,-500.0,0.00010136,2]
[423218686,1779941442000,-648.39385167,0.000102,2]
[423218684,1779941442000,-804.9,0.00010136,2]
[423218710,1779941442000,-857.21,8.767e-05,2]
[423218712,1779941442000,-857.21,9.041e-05,2]
[423218716,1779941442000,-857.21,9.589e-05,2]
[423218714,1779941442000,-857.21,9.315e-05,2]
[423218708,1779941442000,-857.21,8.493e-05,2]
[423218707,1779941442000,-857.21,8.219e-05,2]
[423218718,1779941442000,-857.21,9.863e-05,2]
[423218722,1779941442000,-462.31487972,0.000102,2]
[423218598,1779941442000,-500.0,9.863e-05,2]
[423218682,1779941442000,-500.0,0.00010136,2]
[423218650,1779941442000,-500.0,0.00010136,2]
[423218663,1779941442000,-500.0,0.00010136,2]
[423218652,1779941442000,-1338.06,0.00010136,2]
[423218602,1779941442000,-500.0,9.863e-05,2]
[423218604,1779941442000,-615.51,9.863e-05,2]
[423218614,1779941442000,-804.9,9.863e-05,2]
[423218616,1779941442000,-864.0,9.872e-05,2]
[423218618,1779941442000,-2193.72000579,9.905e-05,7]
[423218620,1779941442000,-1844.12086988,0.0001,2]
[423218622,1779941442000,-1844.12086988,0.000101,2]
[423218624,1779941442000,-979.7814,0.00010136,2]
[423218654,1779941442000,-1106.51,0.00010136,2]
[423218610,1779941442000,-500.0,9.863e-05,2]
[423218720,1779941442000,-857.21,0.00010136,2]
[423218608,1779941442000,-500.0,9.863e-05,2]
[423218626,1779941442000,-490.06,0.00010136,2]
[423218606,1779941442000,-500.0,9.863e-05,2]
[423218628,1779941442000,-569.88,0.00010136,2]
[423218632,1779941442000,-500.0,0.00010136,2]
[423218630,1779941442000,-442.76,0.00010136,2]
[423218638,1779941442000,-500.0,0.00010136,2]
[423218634,1779941442000,-578.19,0.00010136,2]
[423218636,1779941442000,-500.0,0.00010136,2]
[423218644,1779941442000,-500.0,0.00010136,2]
[423218640,1779941442000,-500.0,0.00010136,2]
[423218642,1779941442000,-1281.93,0.00010136,2]
[423218646,1779941442000,-500.0,0.00010136,2]
[423218612,1779941442000,-500.0,9.863e-05,2]
[423218648,1779941442000,-500.0,0.00010136,2]
[423218937,1779941445000,-500.0,0.0001041,2]
[423218931,1779941445000,-500.0,0.0001041,2]
[423218927,1779941445000,-500.0,0.0001041,2]
[423218914,1779941445000,-179.33152751,0.000102,2]
[423218919,1779941445000,-1844.12086988,0.000104,2]
[423218908,1779941445000,-3699.04008204,8.137e-05,2]
[423218922,1779941445000,-979.7814,0.0001041,2]
[423218917,1779941445000,-1844.12086988,0.000103,2]
[423218939,1779941445000,-1281.93,0.0001041,2]
[423218911,1779941445000,-554.08061098,0.000102,2]
[423218924,1779941445000,-569.88,0.0001041,2]
[423218929,1779941445000,-578.19,0.0001041,2]
[423218941,1779941445000,-500.0,0.0001041,2]
[423218947,1779941445000,-500.0,0.0001041,2]
[423218950,1779941445000,-500.0,0.0001041,2]
[423218952,1779941445000,-1338.06,0.0001041,2]
[423218944,1779941445000,-500.0,0.0001041,2]
[423218961,1779941445000,-981.5,0.0001041,2]
[423218959,1779941445000,-500.0,0.0001041,2]
[423218954,1779941445000,-1106.51,0.0001041,2]
[423218957,1779941445000,-500.0,0.0001041,2]
[423218963,1779941445000,-500.0,0.0001041,2]
[423218968,1779941445000,-3837.69472343,0.0001041,2]
[423218965,1779941445000,-500.0,0.0001041,2]
[423218934,1779941445000,-500.0,0.0001041,2]
[423219085,1779941446000,-1379.29,0.0001041,2]
[423219084,1779941446000,-1279.99527657,0.0001041,2]
[423219087,1779941446000,-248.95,0.0001041,2]
[423219088,1779941446000,-538.89,0.0001041,2]
[423219090,1779941446000,-500.0,0.0001041,2]
[423219129,1779941447000,-500.0,0.00010684,2]
[423219133,1779941447000,-857.21,0.00010684,2]
[423219134,1779941447000,-794.0,0.000107,2]
[423219132,1779941447000,-804.9,0.00010684,2]
[423219131,1779941447000,-500.0,0.00010684,2]
[423219130,1779941447000,-168.27200808,0.00010684,2]
[423219136,1779941447000,-979.7814,0.00010958,2]
[423219140,1779941447000,-500.0,0.00010958,2]
[423219138,1779941447000,-500.0,0.00010958,2]
[423219139,1779941447000,-578.19,0.00010958,2]
[423219137,1779941447000,-569.88,0.00010958,2]
[423219135,1779941447000,-1000.0,0.0001086,2]
[423219148,1779941447000,-1106.51,0.00010958,2]
[423219154,1779941447000,-5117.69,0.00010958,2]
[423219152,1779941447000,-500.0,0.00010958,2]
[423219153,1779941447000,-500.0,0.00010958,2]
[423219146,1779941447000,-500.0,0.00010958,2]
[423219147,1779941447000,-1338.06,0.00010958,2]
[423219144,1779941447000,-500.0,0.00010958,2]
[423219145,1779941447000,-500.0,0.00010958,2]
[423219125,1779941447000,-4766.54353097,0.00010684,2]
[423219150,1779941447000,-500.0,0.00010958,2]
[423219141,1779941447000,-500.0,0.00010958,2]
[423219143,1779941447000,-1281.93,0.00010958,2]
[423219149,1779941447000,-500.0,0.00010958,2]
[423219151,1779941447000,-981.5,0.00010958,2]
[423219142,1779941447000,-500.0,0.00010958,2]
[423219128,1779941447000,-419.93,0.00010684,2]
[423219119,1779941447000,-500.0,0.00010684,2]
[423219127,1779941447000,-538.89,0.00010684,2]
[423219156,1779941447000,-538.89,0.00010958,2]
[423219092,1779941447000,-500.0,0.0001041,2]
[423219094,1779941447000,-500.0,0.0001041,2]
[423219106,1779941447000,-500.0,0.00010684,2]
[423219096,1779941447000,-500.0,0.0001041,2]
[423219108,1779941447000,-578.19,0.00010684,2]
[423219109,1779941447000,-500.0,0.00010684,2]
[423219110,1779941447000,-500.0,0.00010684,2]
[423219111,1779941447000,-500.0,0.00010684,2]
[423219112,1779941447000,-1281.93,0.00010684,2]
[423219113,1779941447000,-206.35726567,0.00010684,2]
[423219102,1779941447000,-163.0808,0.00010469,2]
[423219126,1779941447000,-1379.29,0.00010684,2]
[423219103,1779941447000,-979.7814,0.00010684,2]
[423219105,1779941447000,-569.88,0.00010684,2]
[423219100,1779941447000,-857.21,0.0001041,2]
[423219114,1779941447000,-500.0,0.00010684,2]
[423219115,1779941447000,-500.0,0.00010684,2]
[423219120,1779941447000,-500.0,0.00010684,2]
[423219116,1779941447000,-500.0,0.00010684,2]
[423219121,1779941447000,-981.5,0.00010684,2]
[423219118,1779941447000,-1106.51,0.00010684,2]
[423219122,1779941447000,-500.0,0.00010684,2]
[423219123,1779941447000,-500.0,0.00010684,2]
[423219117,1779941447000,-1338.06,0.00010684,2]
[423219124,1779941447000,-351.14646903,0.00010684,2]
[423219097,1779941447000,-804.9,0.0001041,2]
[423219167,1779941447000,-578.19,0.00011232,2]
[423219174,1779941447000,-500.0,0.00011232,2]
[423219157,1779941447000,-500.0,0.00010958,2]
[423219191,1779941447000,-2205.0,0.00011448,2]
[423219188,1779941447000,-857.21,0.00011232,2]
[423219186,1779941447000,-500.0,0.00011232,2]
[423219185,1779941447000,-500.0,0.00011232,2]
[423219194,1779941447000,-185.0,0.00011448,2]
[423219204,1779941447000,-500.0,0.00011506,2]
[423219193,1779941447000,-742.0,0.00011448,2]
[423219201,1779941447000,-500.0,0.00011506,2]
[423219195,1779941447000,-342.80035966,0.00011458,2]
[423219203,1779941447000,-1281.93,0.00011506,2]
[423219197,1779941447000,-569.88,0.00011506,2]
[423219200,1779941447000,-500.0,0.00011506,2]
[423219199,1779941447000,-578.19,0.00011506,2]
[423219198,1779941447000,-500.0,0.00011506,2]
[423219202,1779941447000,-500.0,0.00011506,2]
[423219196,1779941447000,-597.9247,0.00011506,2]
[423219205,1779941447000,-500.0,0.00011506,2]
[423219207,1779941447000,-1106.51,0.00011506,2]
[423219208,1779941447000,-500.0,0.00011506,2]
[423219209,1779941447000,-315.18,0.00011506,2]
[423219210,1779941447000,-981.5,0.00011506,2]
[423219211,1779941447000,-500.0,0.00011506,2]
[423219212,1779941447000,-500.0,0.00011506,2]
[423219214,1779941447000,-1379.29,0.00011506,2]
[423219215,1779941447000,-538.89,0.00011506,2]
[423219183,1779941447000,-1379.29,0.00011232,2]
[423219192,1779941447000,-443.0,0.00011448,2]
[423219213,1779941447000,-5117.69,0.00011506,2]
[423219190,1779941447000,-648.0,0.00011448,2]
[423219187,1779941447000,-804.9,0.00011232,2]
[423219155,1779941447000,-1379.29,0.00010958,2]
[423219162,1779941447000,-733.23105197,0.00011232,2]
[423219158,1779941447000,-500.0,0.00010958,2]
[423219159,1779941447000,-804.9,0.00010958,2]
[423219165,1779941447000,-34.84044706,0.00011232,2]
[423219161,1779941447000,-2003.90200898,0.00011,2]
[423219163,1779941447000,-456.35774803,0.00011232,2]
[423219160,1779941447000,-857.21,0.00010958,2]
[423219164,1779941447000,-535.03955294,0.00011232,2]
[423219168,1779941447000,-500.0,0.00011232,2]
[423219171,1779941447000,-1281.93,0.00011232,2]
[423219170,1779941447000,-500.0,0.00011232,2]
[423219166,1779941447000,-500.0,0.00011232,2]
[423219179,1779941447000,-981.5,0.00011232,2]
[423219169,1779941447000,-500.0,0.00011232,2]
[423219184,1779941447000,-538.89,0.00011232,2]
[423219182,1779941447000,-5117.69,0.00011232,2]
[423219180,1779941447000,-500.0,0.00011232,2]
[423219177,1779941447000,-500.0,0.00011232,2]
[423219181,1779941447000,-500.0,0.00011232,2]
[423219178,1779941447000,-500.0,0.00011232,2]
[423219206,1779941447000,-1338.06,0.00011506,2]
[423219173,1779941447000,-409.25410318,0.00011232,2]
[423219172,1779941447000,-500.0,0.00011232,2]
[423219176,1779941447000,-1106.51,0.00011232,2]
[423219175,1779941447000,-1338.06,0.00011232,2]
[423219189,1779941447000,-1414.0,0.00011368,2]
[423219228,1779941448000,-1281.93,0.0001178,2]
[423219217,1779941448000,-500.0,0.00011506,2]
[423219229,1779941448000,-500.0,0.0001178,2]
[423219231,1779941448000,-1338.06,0.0001178,2]
[423219218,1779941448000,-804.9,0.00011506,2]
[423219230,1779941448000,-500.0,0.0001178,2]
[423219220,1779941448000,-1000.0,0.000116,2]
[423219221,1779941448000,-757.7184,0.0001178,2]
[423219222,1779941448000,-569.88,0.0001178,2]
[423219216,1779941448000,-536.81,0.00011506,2]
[423219219,1779941448000,-857.21,0.00011506,2]
[423219227,1779941448000,-500.0,0.0001178,2]
[423219223,1779941448000,-500.0,0.0001178,2]
[423219236,1779941448000,-500.0,0.0001178,2]
[423219238,1779941448000,-1025.76618042,0.0001178,2]
[423219234,1779941448000,-981.5,0.0001178,2]
[423219237,1779941448000,-3741.11411895,0.0001178,2]
[423219224,1779941448000,-578.19,0.0001178,2]
[423219235,1779941448000,-500.0,0.0001178,2]
[423219232,1779941448000,-1106.51,0.0001178,2]
[423219226,1779941448000,-500.0,0.0001178,2]
[423219233,1779941448000,-500.0,0.0001178,2]
[423219225,1779941448000,-500.0,0.0001178,2]
[423219288,1779942537000,-94.30941809,7.6e-05,2]
[423219287,1779942537000,-300.0,7.599e-05,2]
[423219285,1779942537000,-270.69058191,7.573e-05,2]
[423219286,1779942537000,-184.0,7.598e-05,2]
[423219284,1779942537000,-151.0,7.564e-05,2]
[423219291,1779942539000,-1000.0,7.6e-05,2]
[423219290,1779942539000,-1000.0,7.6e-05,2]
[423219292,1779942540000,-1000.0,7.6e-05,2]
[423219293,1779942540000,-1000.0,7.6e-05,2]
[423219296,1779942541000,-1000.0,7.6e-05,2]
[423219295,1779942541000,-1000.0,7.6e-05,2]
[423219294,1779942541000,-1000.0,7.6e-05,2]
[423219297,1779942542000,-1000.0,7.6e-05,2]
[423219299,1779942542000,-1000.0,7.6e-05,2]
[423219298,1779942542000,-1000.0,7.6e-05,2]
[423219302,1779942543000,-1000.0,7.6e-05,2]
[423219301,1779942543000,-1000.0,7.6e-05,2]
[423219300,1779942543000,-1000.0,7.6e-05,2]
[423219303,1779942544000,-1000.0,7.6e-05,2]
[423219304,1779942544000,-1000.0,7.6e-05,2]
[423219307,1779942545000,-1000.0,7.6e-05,2]
[423219306,1779942545000,-1000.0,7.6e-05,2]
[423219305,1779942545000,-1000.0,7.6e-05,2]
[423219310,1779942546000,-1000.0,7.6e-05,2]
[423219309,1779942546000,-1000.0,7.6e-05,2]
[423219308,1779942546000,-1000.0,7.6e-05,2]
[423219311,1779942547000,-1000.0,7.6e-05,2]
[423219312,1779942547000,-1000.0,7.6e-05,2]
[423219313,1779942548000,-1000.0,7.6e-05,2]
[423219315,1779942549000,-1000.0,7.6e-05,2]
[423219316,1779942549000,-1000.0,7.6e-05,2]
[423219319,1779942550000,-1000.0,7.6e-05,2]
[423219318,1779942550000,-1000.0,7.6e-05,2]
[423219317,1779942550000,-1000.0,7.6e-05,2]
[423219320,1779942551000,-1000.0,7.6e-05,2]
[423219322,1779942552000,-1000.0,7.6e-05,2]
[423219321,1779942552000,-1000.0,7.6e-05,2]
[423219332,1779942564000,-478.11597784,7.6e-05,2]
[423219333,1779942571000,-521.88402216,8e-05,2]
[423219334,1779942593000,-1000.0,8e-05,2]
[423219335,1779942594000,-1000.0,8e-05,2]
[423219336,1779942595000,-1000.0,8e-05,2]
[423219337,1779942595000,-1000.0,8e-05,2]
[423219339,1779942596000,-209.70607007,8e-05,2]
[423219338,1779942596000,-478.11597784,8e-05,2]
[423219340,1779942600000,312.17795209,8e-05,2]
[423219342,1779942601000,1000.0,8e-05,2]
[423219341,1779942601000,1000.0,8e-05,2]
[423219365,1779942634000,-410.71337545,7.599e-05,2]
[423219371,1779942634000,-89.28662455,7.599e-05,2]
[423219373,1779942634000,-486.64161992,7.599e-05,2]
[423219383,1779942634000,-1111.63511899,8.119e-05,2]
[423219375,1779942634000,-13.35838008,7.599e-05,2]
[423219377,1779942634000,-256.17108687,7.599e-05,2]
[423219394,1779942634000,-7112.48114865,8.119e-05,2]
[423219381,1779942634000,-2687.82204791,8e-05,2]
[423219379,1779942634000,-389.06217044,7.599e-05,2]
[423219385,1779942634000,-3082.32694291,8.119e-05,2]
[423219392,1779942634000,-2270.87446784,8.119e-05,2]
[423219396,1779942634000,-545.83712939,8.119e-05,2]
[423219390,1779942634000,-3155.14385043,8.119e-05,2]
[423219531,1779942638000,-500.0,8.219e-05,2]
[423219528,1779942638000,-2466.08903905,8.119e-05,2]
[423219527,1779942638000,-86295.75916166,8.119e-05,2]
[423219529,1779942638000,-829.06107049,8.119e-05,2]
[423219530,1779942638000,-1246.5613,8.219e-05,2]
[423219532,1779942638000,-500.0,8.219e-05,2]
[423219537,1779942638000,-186.13497545,8.219e-05,2]
[423219534,1779942638000,-500.0,8.219e-05,2]
[423219535,1779942638000,-500.0,8.219e-05,2]
[423219536,1779942638000,-575.98,8.219e-05,2]
[423219539,1779942638000,-500.0,8.219e-05,2]
[423219538,1779942638000,-500.0,8.219e-05,2]
[423219533,1779942638000,-500.0,8.219e-05,2]
[423219540,1779942638000,-500.0,8.219e-05,2]
[423219573,1779942639000,-500.0,8.219e-05,2]
[423219586,1779942639000,-1013.68,8.219e-05,2]
[423219582,1779942639000,-500.0,8.219e-05,2]
[423219579,1779942639000,-1037.22,8.219e-05,2]
[423219580,1779942639000,-500.0,8.219e-05,2]
[423219578,1779942639000,-1655.62,8.219e-05,2]
[423219581,1779942639000,-500.0,8.219e-05,2]
[423219583,1779942639000,-500.0,8.219e-05,2]
[423219575,1779942639000,-316.95958346,8.219e-05,2]
[423219576,1779942639000,-159.02068962,8.219e-05,2]
[423219571,1779942639000,-500.0,8.219e-05,2]
[423219574,1779942639000,-500.0,8.219e-05,2]
[423219577,1779942639000,-500.0,8.219e-05,2]
[423219587,1779942639000,-7674.49,8.219e-05,2]
[423219584,1779942639000,-500.0,8.219e-05,2]
[423219589,1779942639000,-500.0,8.219e-05,2]
[423219590,1779942639000,-500.0,8.219e-05,2]
[423219585,1779942639000,-500.0,8.219e-05,2]
[423219591,1779942639000,-500.0,8.219e-05,2]
[423219592,1779942639000,-1538.1,8.219e-05,2]
[423219593,1779942639000,-500.0,8.219e-05,2]
[423219594,1779942639000,-500.0,8.219e-05,2]
[423219595,1779942639000,-500.0,8.219e-05,2]
[423219596,1779942639000,-622.82,8.219e-05,2]
[423219597,1779942639000,-500.0,8.219e-05,2]
[423219600,1779942639000,-500.0,8.219e-05,2]
[423219599,1779942639000,-500.0,8.219e-05,2]
[423219598,1779942639000,-500.0,8.219e-05,2]
[423219588,1779942639000,-582.95693444,8.219e-05,2]
[423219572,1779942639000,-1544.76,8.219e-05,2]
[423219548,1779942639000,-500.0,8.219e-05,2]
[423219563,1779942639000,-500.0,8.219e-05,2]
[423219542,1779942639000,-500.0,8.219e-05,2]
[423219541,1779942639000,-500.0,8.219e-05,2]
[423219543,1779942639000,-500.0,8.219e-05,2]
[423219547,1779942639000,-862.38,8.219e-05,2]
[423219546,1779942639000,-500.0,8.219e-05,2]
[423219544,1779942639000,-500.0,8.219e-05,2]
[423219601,1779942639000,-500.0,8.219e-05,2]
[423219545,1779942639000,-500.0,8.219e-05,2]
[423219550,1779942639000,-500.0,8.219e-05,2]
[423219549,1779942639000,-500.0,8.219e-05,2]
[423219552,1779942639000,-500.0,8.219e-05,2]
[423219554,1779942639000,-500.0,8.219e-05,2]
[423219553,1779942639000,-500.0,8.219e-05,2]
[423219570,1779942639000,-500.0,8.219e-05,2]
[423219551,1779942639000,-500.0,8.219e-05,2]
[423219555,1779942639000,-500.0,8.219e-05,2]
[423219557,1779942639000,-589.68,8.219e-05,2]
[423219565,1779942639000,-500.0,8.219e-05,2]
[423219566,1779942639000,-500.0,8.219e-05,2]
[423219569,1779942639000,-500.0,8.219e-05,2]
[423219567,1779942639000,-500.0,8.219e-05,2]
[423219558,1779942639000,-500.0,8.219e-05,2]
[423219568,1779942639000,-502.21554115,8.219e-05,2]
[423219559,1779942639000,-500.83940402,8.219e-05,2]
[423219560,1779942639000,-500.0,8.219e-05,2]
[423219564,1779942639000,-500.0,8.219e-05,2]
[423219562,1779942639000,-500.0,8.219e-05,2]
[423219561,1779942639000,-500.0,8.219e-05,2]
[423219556,1779942639000,-500.0,8.219e-05,2]
[423219602,1779942639000,-500.0,8.219e-05,2]
[423219659,1779942639000,-1246.5613,8.493e-05,2]
[423219604,1779942639000,-947.52,8.219e-05,2]
[423219645,1779942639000,-500.0,8.381e-05,2]
[423219647,1779942639000,-500.0,8.381e-05,2]
[423219638,1779942639000,-500.0,8.381e-05,2]
[423219637,1779942639000,-500.0,8.381e-05,2]
[423219636,1779942639000,-500.0,8.381e-05,2]
[423219642,1779942639000,-500.0,8.381e-05,2]
[423219640,1779942639000,-500.0,8.381e-05,2]
[423219639,1779942639000,-500.0,8.381e-05,2]
[423219644,1779942639000,-500.0,8.381e-05,2]
[423219641,1779942639000,-500.0,8.381e-05,2]
[423219643,1779942639000,-500.0,8.381e-05,2]
[423219648,1779942639000,-500.0,8.381e-05,2]
[423219652,1779942639000,-500.0,8.381e-05,2]
[423219634,1779942639000,-500.0,8.381e-05,2]
[423219649,1779942639000,-500.0,8.381e-05,2]
[423219656,1779942639000,-500.0,8.381e-05,2]
[423219650,1779942639000,-500.0,8.381e-05,2]
[423219653,1779942639000,-500.0,8.381e-05,2]
[423219654,1779942639000,-261.72262418,8.381e-05,2]
[423219658,1779942639000,-288.47576437,8.381e-05,2]
[423219657,1779942639000,-500.0,8.381e-05,2]
[423219660,1779942639000,-500.0,8.493e-05,2]
[423219661,1779942639000,-500.0,8.493e-05,2]
[423219665,1779942639000,-575.98,8.493e-05,2]
[423219664,1779942639000,-500.0,8.493e-05,2]
[423219662,1779942639000,-500.0,8.493e-05,2]
[423219663,1779942639000,-500.0,8.493e-05,2]
[423219603,1779942639000,-500.0,8.219e-05,2]
[423219655,1779942639000,-500.0,8.381e-05,2]
[423219646,1779942639000,-500.0,8.381e-05,2]
[423219651,1779942639000,-500.0,8.381e-05,2]
[423219632,1779942639000,-500.0,8.381e-05,2]
[423219606,1779942639000,-507.55509189,8.219e-05,2]
[423219635,1779942639000,-500.0,8.381e-05,2]
[423219605,1779942639000,-500.0,8.219e-05,2]
[423219608,1779942639000,-500.0,8.219e-05,2]
[423219611,1779942639000,-167.65306194,8.367e-05,2]
[423219620,1779942639000,-306.08796031,8.381e-05,2]
[423219618,1779942639000,-500.0,8.381e-05,2]
[423219610,1779942639000,-501.91044933,8.367e-05,2]
[423219612,1779942639000,-180.87611261,8.367e-05,2]
[423219607,1779942639000,-500.0,8.219e-05,2]
[423219619,1779942639000,-501.75188743,8.381e-05,2]
[423219613,1779942639000,-537.6845,8.367e-05,2]
[423219615,1779942639000,-505.6268223,8.381e-05,2]
[423219616,1779942639000,-500.0,8.381e-05,2]
[423219609,1779942639000,-500.0,8.219e-05,2]
[423219614,1779942639000,-600.0,8.38e-05,2]
[423219633,1779942639000,-396.14647603,8.381e-05,2]
[423219617,1779942639000,-287.97947139,8.381e-05,2]
[423219628,1779942639000,-500.0,8.381e-05,2]
[423219626,1779942639000,-500.0,8.381e-05,2]
[423219627,1779942639000,-504.15,8.381e-05,2]
[423219630,1779942639000,-501.07170061,8.381e-05,2]
[423219629,1779942639000,-500.0,8.381e-05,2]
[423219622,1779942639000,-500.0,8.381e-05,2]
[423219624,1779942639000,-500.0,8.381e-05,2]
[423219623,1779942639000,-376.98571441,8.381e-05,2]
[423219625,1779942639000,-500.0,8.381e-05,2]
[423219621,1779942639000,-500.0,8.381e-05,2]
[423219631,1779942639000,-500.0,8.381e-05,2]
[423219712,1779942640000,-500.0,8.655e-05,2]
[423219708,1779942640000,-500.0,8.493e-05,2]
[423219710,1779942640000,-500.0,8.493e-05,2]
[423219700,1779942640000,-500.0,8.493e-05,2]
[423219702,1779942640000,-500.0,8.493e-05,2]
[423219703,1779942640000,-500.0,8.493e-05,2]
[423219701,1779942640000,-500.0,8.493e-05,2]
[423219694,1779942640000,-500.0,8.493e-05,2]
[423219699,1779942640000,-622.82,8.493e-05,2]
[423219697,1779942640000,-500.0,8.493e-05,2]
[423219698,1779942640000,-500.0,8.493e-05,2]
[423219709,1779942640000,-500.0,8.493e-05,2]
[423219704,1779942640000,-500.0,8.493e-05,2]
[423219711,1779942640000,-494.11767632,8.493e-05,2]
[423219724,1779942640000,-365.50079899,8.683e-05,2]
[423219718,1779942640000,-233.84704073,8.655e-05,2]
[423219719,1779942640000,-371.41,8.655e-05,2]
[423219714,1779942640000,-500.0,8.655e-05,2]
[423219717,1779942640000,-500.0,8.655e-05,2]
[423219716,1779942640000,-500.0,8.655e-05,2]
[423219715,1779942640000,-500.0,8.655e-05,2]
[423219732,1779942640000,-500.0,8.767e-05,2]
[423219721,1779942640000,-500.0,8.655e-05,2]
[423219731,1779942640000,-500.0,8.767e-05,2]
[423219720,1779942640000,-500.0,8.655e-05,2]
[423219722,1779942640000,-500.0,8.655e-05,2]
[423219723,1779942640000,-829.06107048,8.664e-05,2]
[423219696,1779942640000,-500.0,8.493e-05,2]
[423219713,1779942640000,-500.0,8.655e-05,2]
[423219695,1779942640000,-1538.1,8.493e-05,2]
[423219668,1779942640000,-500.0,8.493e-05,2]
[423219705,1779942640000,-500.0,8.493e-05,2]
[423219725,1779942640000,-1246.5613,8.767e-05,2]
[423219666,1779942640000,-500.0,8.493e-05,2]
[423219667,1779942640000,-500.0,8.493e-05,2]
[423219681,1779942640000,-500.0,8.493e-05,2]
[423219680,1779942640000,-500.0,8.493e-05,2]
[423219671,1779942640000,-862.38,8.493e-05,2]
[423219674,1779942640000,-589.68,8.493e-05,2]
[423219669,1779942640000,-500.0,8.493e-05,2]
[423219676,1779942640000,-500.0,8.493e-05,2]
[423219675,1779942640000,-500.0,8.493e-05,2]
[423219672,1779942640000,-500.0,8.493e-05,2]
[423219673,1779942640000,-503.02539759,8.493e-05,2]
[423219677,1779942640000,-500.0,8.493e-05,2]
[423219707,1779942640000,-947.52,8.493e-05,2]
[423219679,1779942640000,-500.0,8.493e-05,2]
[423219682,1779942640000,-1544.76,8.493e-05,2]
[423219683,1779942640000,-500.0,8.493e-05,2]
[423219693,1779942640000,-7674.49,8.493e-05,2]
[423219687,1779942640000,-500.0,8.493e-05,2]
[423219685,1779942640000,-1655.62,8.493e-05,2]